Cogmind - Beta 16 @@@ ROGUE MODE // 2026.01.19 @ 21:35:53 // Winter2019/RPGLIKE Player: Gallgagger Result: Self-destructed Performance ------------- Evolutions (3) 1500 Regions Visited (7) 1400 Robots Destroyed (367) 1835 Value Destroyed (14653) 14653 Prototype IDs (1) 20 Alien Tech Used (0) 0 Bonus (10105) 10105 TOTAL SCORE: 29513 Bonus ------- Triggered High Security 500 High Alert Combat Kills 9305 Aligned with FarCom 300 Cogmind --------- Core Integrity 550/600 Matter 300/300 Energy 210/210 System Corruption 1% Temperature Cool (-100) Movement Rolling (86) Location -7/Lower Caves Parts ------- > --- POWER (2) -------- Light Nuclear Core Micro Nuclear Core > --- PROPULSION (6) --- Wheel Wheel Armored Huge Wheel Armored Huge Wheel > --- UTILITY (8) ------ Cryofiber Web Improved Heat Sink Improved Heat Sink Disposable Heat Sink (fused) Signal Interpreter Medium Reactive Plating Reflective Plating System Restoration Module > --- WEAPON (2) ------- Firepult > --- INVENTORY (2) ---- Protomatter-37 Seismic Detector Peak State ------------ > --- POWER ------------ Light Nuclear Core Micro Nuclear Core > --- PROPULSION ------- Wheel Wheel Armored Huge Wheel Armored Huge Wheel > --- UTILITY ---------- Cryofiber Web Improved Heat Sink Improved Heat Sink Disposable Heat Sink Signal Interpreter Medium Reactive Plating Reflective Plating System Restoration Module > --- WEAPON ----------- Firepult > --- INVENTORY -------- Protomatter Protomatter [Rating: 68] Favorites ----------- Power Light Nuclear Core Engine Ion Engine Power Core Light Nuclear Core Propulsion Wheel Wheel Wheel Utility Seismic Detector Device Seismic Detector Processor Signal Interpreter Protection Reflective Plating Weapon Firepult Energy Gun Medium Laser Energy Cannon Firepult Build | -11 -10 -10 -10 -9 -8 -7 -7 ------- Run | Yrd Mat Min Exi Min Mat Fac Low Slots Evolved 14 | 4 2 . 1 1 3 3 . Power 1 | 1 . . . . . . . Propulsion 5 | 1 . . 1 . 1 2 . Utility 7 | 1 2 . . 1 2 1 . Weapon 1 | 1 . . . . . . . Parts Attached 34 | 9 2 3 1 2 7 10 . Power 5 | 2 . 1 . . 1 1 . Engine 2 | 2 . . . . . . . Core 3 | . . 1 . . 1 1 . Reactor . | . . . . . . . . Propulsion 7 | 2 . . . 1 1 3 . Treads . | . . . . . . . . Leg . | . . . . . . . . Wheel 7 | 2 . . . 1 1 3 . Hover . | . . . . . . . . Flight . | . . . . . . . . Utility 17 | 3 2 . . 1 5 6 . Device 10 | 3 1 . . 1 2 3 . Storage . | . . . . . . . . Processor 1 | . . . . . 1 . . Hackware . | . . . . . . . . Protection 6 | . 1 . . . 2 3 . Artifact . | . . . . . . . . Weapon 5 | 2 . 2 1 . . . . Energy Gun 4 | 2 . 2 . . . . . Energy Cannon 1 | . . . 1 . . . . Ballistic Gun . | . . . . . . . . Ballistic Cannon . | . . . . . . . . Launcher . | . . . . . . . . Special Weapon . | . . . . . . . . Impact Weapon . | . . . . . . . . Slashing Weapon . | . . . . . . . . Piercing Weapon . | . . . . . . . . Special Melee Weapon . | . . . . . . . . Unidentified Prototypes 1 | . . . 1 . . . . Parts Lost . | . . . . . . . . Power . | . . . . . . . . Propulsion . | . . . . . . . . Utility . | . . . . . . . . Weapon . | . . . . . . . . Highest Loss Streak . | . . . . . . . . To Critical Strikes . | . . . . . . . . Average Backups . | . 1 1 1 1 . . 1 Power . | . . . . . . . . Propulsion . | . 1 1 . . . . . Utility . | . . . . . . . 1 Weapon . | . . . . . . . . Tool/Special . | . . . . . . . . Unused Backups 3 | . 1 . 1 . 1 . . Power . | . . . . . . . . Propulsion 2 | . 1 . 1 . . . . Utility 1 | . . . . . 1 . . Weapon . | . . . . . . . . Tool/Special . | . . . . . . . . Average Slot Usage (%) 91 | . 98 100 82 75 90 88 83 Engine 7 | . 22 17 5 3 . . . Core 8 | . . 2 9 8 12 11 11 Wheel 22 | . 22 20 19 21 24 23 22 Device 28 | . 25 30 28 29 28 28 27 Processor 2 | . . . . . 1 5 5 Protection 10 | . 6 10 5 3 14 11 11 Energy Gun 7 | . 22 20 10 . . . . Energy Cannon 4 | . . . 4 8 6 5 5 Peak Build Rating 68 | 10 12 16 32 35 46 68 68 Average Rating 35 | 6 10 13 23 32 42 55 68 On Entrance 26 | . 10 12 16 30 35 44 68 Avg Prop Armor Cover (%) 2 | . . . . . . 2 5 Naked Turns . | . . . . . . . . Heaviest Build 62 | 16 20 22 30 39 47 62 62 Greatest Support 91 | 25 25 25 30 40 55 91 91 Greatest Overweight (x) 1 | . . . . . . 1 . Average Overweight (x) . | . . . . . . . . Largest Inventory Capacity 2 | 2 2 2 2 2 2 2 2 Average Capacity 1 | 1 2 2 2 2 2 2 2 Most Carried 2 | . 2 2 2 2 2 2 2 Average Carried 1 | . 1 1 1 1 1 1 1 Final Capacity 2 | 2 2 2 2 2 2 2 2 Final Carried 2 | . 2 1 2 2 2 1 2 Class Distribution -------------------- 53% | Scavenger-Mutant 24% | Mutant 21% | Scavenger-Skirmisher Dominant Class ---------------- Mutant | -10/Materials Scavenger-Mutant | -10/Mines Scavenger-Mutant | -10/Exiles Scavenger-Skirmisher | -9/Mines Scavenger-Skirmisher | -8/Materials Scavenger-Mutant | -7/Factory Scavenger-Mutant | -7/Lower Caves Resources | -11 -10 -10 -10 -9 -8 -7 -7 ----------- Run | Yrd Mat Min Exi Min Mat Fac Low Matter Collected 699 | 295 25 30 . 50 97 197 5 Remotely 117 | 117 . . . . . . . Salvage Created 15086 | 153 933 195 . 330 3312 10007 156 Parts 387 | 14 63 6 . 10 100 190 4 Haulers Intercepted 7 | . 2 . . . 3 2 . Recyclers Shooed 6 | . . . . 1 1 4 . Parts Field Recycled . | . . . . . . . . Retrieved Matter . | . . . . . . . . Parts Self-Destructed 4 | . . . . . . . 4 Prevented . | . . . . . . . . Parts Restored . | . . . . . . . . Kills | -11 -10 -10 -10 -9 -8 -7 -7 ------- Run | Yrd Mat Min Exi Min Mat Fac Low Combat Hostiles Destroyed 291 | . 33 8 . 10 64 170 6 Guns 40 | . 32 8 . . . . . Cannons 12 | . . . . 1 4 7 . AOE 101 | . . . . 9 31 57 4 Classes Destroyed 19 | 2 5 1 . 1 8 2 . Worker 18 | . 2 . . . 7 9 . Builder 9 | . . . . . 4 5 . Tunneler 8 | 5 . . . 1 1 1 . Hauler 7 | . 2 . . . 3 2 . Recycler 6 | 1 . . . . 2 3 . Carrier 9 | . . . . . 1 8 . Mechanic 20 | . . . . . 4 16 . Operator 1 | . . . . 1 . . . Watcher 8 | . 2 . . . 3 3 . Swarmer 17 | . 6 . . 4 . 6 1 Cutter 3 | . . . . . . 3 . Grunt 148 | . 27 4 . 6 42 66 3 Brawler 16 | . . . . . 4 11 1 Duelist 21 | . . . . . 6 14 1 Protector 16 | . . . . . 2 14 . Sentry 13 | . . . . . 7 6 . Hunter 33 | . . . . . 3 30 . Programmer 20 | . . . . . . 20 . Assembled 4 | . . 4 . . . . . Best Kill Streak 30 | 4 4 2 . 4 19 30 4 Combat Bots Only 29 | . 3 2 . 4 13 29 4 Max Kills in Single Turn 5 | 1 1 1 . 3 5 5 4 Gunslinging . | . . . . . . . . Exploded 4 | . . . . 3 3 4 3 Melee . | . . . . . . . . Uniques/NPCs Destroyed . | . . . . . . . . Combat | -11 -10 -10 -10 -9 -8 -7 -7 -------- Run | Yrd Mat Min Exi Min Mat Fac Low Hostile Shots Fired 576 | . 140 32 . 15 43 331 15 Missed 219 | . 43 12 . 6 15 136 7 Hits 357 | . 97 20 . 9 28 195 8 Melee 5 | . . . . . . 5 . Projectile 352 | . 97 20 . 9 28 190 8 Critical Strikes 8 | . . . . . 1 7 . Damage Taken 4712 | . 1043 291 . 113 693 2458 114 Core 3198 | . 783 169 . 82 463 1606 95 Absorbed by Shields . | . . . . . . . . Redirected to Core 2510 | . 588 152 . 60 437 1237 36 Ignored by Resistances 578 | . . . . . 58 499 21 Core Remaining (%) 99 | 100 . . . 100 98 . . Volleys Fired 397 | 10 113 26 . 9 68 165 6 Largest 2 | 2 2 2 . 1 1 1 1 Hottest 250 | 100 100 115 . 250 250 250 250 Shots Fired 534 | 16 212 52 . 9 71 168 6 Gun 280 | 16 212 52 . . . . . Cannon 254 | . . . . 9 71 168 6 Launcher . | . . . . . . . . Special . | . . . . . . . . Kinetic . | . . . . . . . . Thermal 534 | 16 212 52 . 9 71 168 6 Explosive . | . . . . . . . . Electromagnetic . | . . . . . . . . Robot Hit Streak 22 | 6 19 18 . 12 22 18 7 Robot Miss Streak 4 | 1 3 4 . 3 3 4 3 Penetration Max . | . . . . . . . . Secondary Targets 6 | . 5 1 . . . . . Max Gunslinging Chain 1 | . 1 1 . . . . . Shots Hit Robots 387 | 10 150 34 . 5 47 136 5 Core Hits 675 | 7 70 18 . 18 136 411 15 Critical Kills . | . . . . . . . . Critical Parts Destroyed . | . . . . . . . . Critical Strikes 17 | 1 13 3 . . . . . Burn 17 | 1 13 3 . . . . . Melee Attacks . | . . . . . . . . Impact . | . . . . . . . . Slashing . | . . . . . . . . Piercing . | . . . . . . . . Sneak Attacks . | . . . . . . . . Combat Hostiles . | . . . . . . . . Follow-up Attacks . | . . . . . . . . Damage Inflicted 24395 | 138 1993 466 . 646 5373 15302 477 Guns 2585 | 138 1981 466 . . . . . Cannons 3565 | . . . . 117 935 2449 64 Explosions 18233 | . . . . 529 4438 12853 413 Melee . | . . . . . . . . Ramming 12 | . 12 . . . . . . Kinetic . | . . . . . . . . Thermal 23887 | 138 1981 466 . 646 5028 15151 477 Explosive 496 | . . . . . 345 151 . Electromagnetic . | . . . . . . . . Impact . | . . . . . . . . Slashing . | . . . . . . . . Piercing . | . . . . . . . . Highest Corruption 7 | . . . . . 2 7 6 Average Corruption 3 | . . . . . 2 4 4 Corruption Purged 6 | . . . . . . . 6 Corruption Blocked . | . . . . . . . . Effects 48 | . . . . . 19 27 2 Message Errors 11 | . . . . . 5 4 2 Matter Fused 12 | . . . . . 3 9 . Heat Flow Errors 5 | . . . . . 1 4 . Energy Discharges 3 | . . . . . 1 2 . Parts Fused 1 | . . . . . . 1 . Data Loss (minor) 8 | . . . . . 4 4 . Data Loss (major) 1 | . . . . . 1 . . Misfires 6 | . . . . . 3 3 . Alerts 1 | . . . . . 1 . . Overload Shots . | . . . . . . . . Overflow Damage 162 | . . . . 13 24 125 . Projectiles 26 | . . . . . 15 11 . Explosions 136 | . . . . 13 9 114 . Melee . | . . . . . . . . Knockbacks . | . . . . . . . . Impact . | . . . . . . . . Kinetic . | . . . . . . . . Secondary . | . . . . . . . . Self-Inflicted Damage 528 | . 6 . . 22 306 194 . Shots 36 | . . . . 2 16 18 . Rammed 1 | . 1 . . . . . . Targets Rammed 1 | . 1 . . . . . . Kicked . | . . . . . . . . Crushed . | . . . . . . . . Highest Temperature 737 | 309 165 . . 192 199 259 737 Average Temperature 97 | 137 64 . . 83 94 75 390 Received Heat Transfer 1182 | . 465 84 . 33 189 348 63 Effects 15 | 3 . . . . . . 12 Shutdowns 2 | . . . . . . . 2 Interference 9 | 3 . . . . . . 6 Short Circuit 2 | . . . . . . . 2 Damage (major) 2 | . . . . . . . 2 Siege Activations . | . . . . . . . . Martial Activations . | . . . . . . . . Shielding Activations . | . . . . . . . . Robots Disrupted . | . . . . . . . . Combat Hostiles . | . . . . . . . . Robots Corrupted . | . . . . . . . . Combat Hostiles . | . . . . . . . . Parts Fried . | . . . . . . . . Impact Corruptions . | . . . . . . . . Robots Melted 164 | . 1 . . . 35 126 2 Combat Hostiles 138 | . 1 . . . 29 106 2 Parts Melted 585 | . 19 2 . 14 130 414 6 Heat Transferred 114191 | 481 6660 1517 . 3170 26969 72674 2720 Parts Sabotaged . | . . . . . . . . Parts Stolen . | . . . . . . . . Parts Stripped . | . . . . . . . . Power Chain Reactions . | . . . . . . . . Alert | -11 -10 -10 -10 -9 -8 -7 -7 ------- Run | Yrd Mat Min Exi Min Mat Fac Low Maximum Alert Level 5 | . 2 1 . 1 5 5 . Low Security (%) 26 | 100 45 79 . 77 5 . . Level 1 14 | . 39 20 . 22 6 . . Level 2 5 | . 15 . . . 10 . . Level 3 12 | . . . . . 8 28 . Level 4 8 | . . . . . 30 6 . Level 5 11 | . . . . . 38 11 . High Security 19 | . . . . . . 52 . Max Security . | . . . . . . . . Sterilizations 2 | . . . . . 1 1 . Peak Influence 5189 | 10 566 257 . 255 2083 5189 . Initial 902 | . . 217 . . 68 902 . Average 1310 | 3 235 122 . 113 1381 2561 . Influence Increases 8926 | 30 1104 100 . 387 2414 4761 130 Destroy 0b10 Robot/C 5600 | . 660 80 . 200 1260 3280 120 Destroy 0b10 Robot/NC 460 | 30 30 . . 5 130 265 . Destroy Leader 1150 | . 168 20 . 30 282 640 10 Successful Hack 41 | . 20 . . . . 21 . Select Force Hacks 210 | . 180 . . . 30 . . Disable Machine 645 | . . . . 90 180 375 . Anti-Garrison Action 150 | . . . . . 150 . . Destroy Structure 535 | . 1 . . 62 352 120 . Partial Spotted 30 | . 30 . . . . . . Lose Combat Pursuer 105 | . 15 . . . 30 60 . Influence Decreases 5598 | 30 547 642 15 212 605 1556 1991 Entered New Map 3465 | . . 340 15 . 107 1082 1921 Time Decay 2133 | 30 547 302 . 212 498 474 70 Squads Dispatched 80 | . 13 . . . 15 52 . Investigation 19 | . 11 . . . 5 3 . Extermination 2 | . . . . . . 2 . Reinforcement 10 | . 2 . . . 3 5 . Assault 42 | . . . . . 6 36 . Garrison 7 | . . . . . 1 6 . Intercept . | . . . . . . . . Searches Triggered . | . . . . . . . . Construction Impeded 3 | . . . . . 2 1 . Haulers Reinforced 1 | . . . . . . 1 . Active Scanning Responses . | . . . . . . . . Cargo Convoy Interrupts . | . . . . . . . . Stealth | -11 -10 -10 -10 -9 -8 -7 -7 --------- Run | Yrd Mat Min Exi Min Mat Fac Low Distress Signals 7 | . . . . . 4 3 . Communications Jammed . | . . . . . . . . Distress Signals . | . . . . . . . . Times Spotted 316 | . 45 17 . 7 68 166 13 Peak Tracking Total 9 | . 5 7 . 4 8 9 9 Tactical Retreats 6 | . 1 1 . . 1 3 . Traps | -11 -10 -10 -10 -9 -8 -7 -7 ------- Run | Yrd Mat Min Exi Min Mat Fac Low Traps Triggered 8 | . 3 . . . 3 2 . Indirectly . | . . . . . . . . Trap Hack Attempts . | . . . . . . . . Triggered . | . . . . . . . . Disarmed . | . . . . . . . . Reprogrammed . | . . . . . . . . Reused . | . . . . . . . . Traps Extracted . | . . . . . . . . Installed . | . . . . . . . . Triggered . | . . . . . . . . Machines | -11 -10 -10 -10 -9 -8 -7 -7 ---------- Run | Yrd Mat Min Exi Min Mat Fac Low Machines Disabled 47 | . . . . 6 15 26 . Max in Single Turn 6 | . . . . 4 4 6 . Garrison Access 2 | . . . . . 1 1 . Machines Repaired . | . . . . . . . . Machines Dismantled . | . . . . . . . . Machines Sabotaged 3 | . 3 . . . . . . Overloaded Fab Kills . | . . . . . . . . Hacking | -11 -10 -10 -10 -9 -8 -7 -7 --------- Run | Yrd Mat Min Exi Min Mat Fac Low Machines Accessed 17 | . 8 . . . 5 4 . Terminals 12 | . 6 . . . 4 2 . Fabricators 2 | . . . . . . 2 . Repair Stations 1 | . 1 . . . . . . Recycling Units 2 | . 1 . . . 1 . . Scanalyzers . | . . . . . . . . Garrison Access . | . . . . . . . . Total Hacks 44 | . 19 . . . 12 13 . Successful 18 | . 12 . . . 2 4 . Failed 26 | . 7 . . . 10 9 . Catastrophic 9 | . . . . . 4 5 . Database Lockouts . | . . . . . . . . Manual 37 | . 17 . 1 . 12 7 . Terminals 38 | . 17 . . . 11 10 . Fabricators 3 | . . . . . . 3 . Repair Stations 1 | . 1 . . . . . . Recycling Units 2 | . 1 . . . 1 . . Scanalyzers . | . . . . . . . . Garrison Access . | . . . . . . . . Terminal Hacks 3 | . 2 . . . . 1 . Part Schematic 1 | . . . . . . 1 . Robot Analysis 2 | . 2 . . . . . . Fabricator Hacks 2 | . . . . . . 2 . Load Schematic 1 | . . . . . . 1 . Build 1 | . . . . . . 1 . Repair Station Hacks . | . . . . . . . . Recycling Unit Hacks . | . . . . . . . . Scanalyzer . | . . . . . . . . Garrison Access Hacks . | . . . . . . . . Unauthorized Hacks 13 | . 10 . . . 2 1 . Terminals 10 | . 8 . . . 1 1 . Assimilate 1 | . 1 . . . . . . Botnet 2 | . 1 . . . . 1 . Disrupt 1 | . 1 . . . . . . Sabotage 6 | . 5 . . . 1 . . Fabricators . | . . . . . . . . Repair Stations 1 | . 1 . . . . . . Patch 1 | . 1 . . . . . . Recycling Units 2 | . 1 . . . 1 . . Tunnel 2 | . 1 . . . 1 . . Scanalyzers . | . . . . . . . . Garrison Access . | . . . . . . . . Data Cores Recovered . | . . . . . . . . Used . | . . . . . . . . Hacking Detections 11 | . 4 . . . 3 4 . Full Trace Events 7 | . 1 . . . 3 3 . Feedback Events . | . . . . . . . . Feedback Blocked . | . . . . . . . . Robot Schematics Acquired . | . . . . . . . . Robots Built . | . . . . . . . . Authchips . | . . . . . . . . Time . | . . . . . . . . Total Robot Build Rating . | . . . . . . . . Part Schematics Acquired 1 | . . . . . . 1 . Parts Built 2 | . . . . . . 2 . Authchips . | . . . . . . . . Time 36 | . . . . . . 36 . Total Part Build Rating 6 | . . . . . . 6 . Part Studies Acquired . | . . . . . . . . Parts Repaired . | . . . . . . . . Time . | . . . . . . . . Parts Recycled . | . . . . . . . . Recycled Matter . | . . . . . . . . Retrieved Matter . | . . . . . . . . Retrieved Components . | . . . . . . . . Parts Scanalyzed . | . . . . . . . . Part Schematics Acquired . | . . . . . . . . Parts Damaged . | . . . . . . . . Bothacking | -11 -10 -10 -10 -9 -8 -7 -7 ------------ Run | Yrd Mat Min Exi Min Mat Fac Low Used RIF Installer . | . . . . . . . . Robots Hacked . | . . . . . . . . Non-combat . | . . . . . . . . Combat . | . . . . . . . . Robot Hacks Applied . | . . . . . . . . Relay Couplers Released 2 | . . . . . 1 1 . Machine Destruction 2 | . . . . . 1 1 . Fabnet Peak Effective % . | . . . . . . . . Robots Rewired . | . . . . . . . . Allies Hacked . | . . . . . . . . Hacks Repelled . | . . . . . . . . Allies | -11 -10 -10 -10 -9 -8 -7 -7 -------- Run | Yrd Mat Min Exi Min Mat Fac Low Total Allies 2 | . 1 1 . . . . . Largest Group 2 | . 1 2 1 1 . . . Highest-Rated Group 41 | . 10 41 10 9 . . . Highest-Rated Ally 31 | . 10 31 10 9 . . . Total Orders 16 | . 10 6 . . . . . STAY 10 | . 6 4 . . . . . FOLLOW 6 | . 4 2 . . . . . Ally Attacks 6 | . . 6 . . . . . Total Damage 83 | . . 83 . . . . . Kills 2 | . . 2 . . . . . Allies Corrupted . | . . . . . . . . Allies Melted . | . . . . . . . . Intel | -11 -10 -10 -10 -9 -8 -7 -7 ------- Run | Yrd Mat Min Exi Min Mat Fac Low Active Infowar (turns) 6456 | 19 1672 670 177 498 1334 2086 . Terrain 4070 | 11 1672 670 177 498 1042 . . Seismic 6448 | 11 1672 670 177 498 1334 2086 . Robot Analysis Total 2 | . 2 . . . . . . Derelict Logs Recovered 2 | . . 1 . . . . 1 Drone Launches . | . . . . . . . . Drone Recoveries . | . . . . . . . . Exploration | -11 -10 -10 -10 -9 -8 -7 -7 ------------- Run | Yrd Mat Min Exi Min Mat Fac Low Turns Passed 7157 | 91 1672 670 177 498 1334 2571 144 Spaces Moved 6766 | 48 1437 695 213 572 1395 2289 117 Core 3 | 3 . . . . . . . Treads . | . . . . . . . . Legs . | . . . . . . . . Wheels 6763 | 45 1437 695 213 572 1395 2289 117 Hover . | . . . . . . . . Flight . | . . . . . . . . Fastest Speed 50 | 50 80 80 80 80 80 80 86 Average Speed 81 | 78 80 80 80 80 80 84 87 Slowest Speed 95 | 80 80 80 80 80 80 95 90 Overloaded Moves . | . . . . . . . . Propulsion Burnouts . | . . . . . . . . Robots Hopped . | . . . . . . . . Potential Cave-ins . | . . . . . . . . Cave-ins Triggered . | . . . . . . . . Exploration Rate (%) 62 | 3 91 98 61 97 90 43 19 Regions Visited 7 Branch Regions 4 Pre-discovered Areas 3 | . 1 1 . . 1 . . Known Exits Taken 2 | . . . . . 1 1 . Unknown Exits Taken 5 | 1 1 1 1 1 . . . Scrap Searched 4 | . . 1 . 2 . . 1 Spaces Dug 31 | . . . . . 31 . . Terrain Destroyed 668 | . . . . 76 411 181 . Melee . | . . . . . . . . Projectile 36 | . . . . 4 27 5 . AOE 632 | . . . . 72 384 176 . Terrain Rammed . | . . . . . . . . Walls Destroyed . | . . . . . . . . Machines Disabled . | . . . . . . . . Actions | -11 -10 -10 -10 -9 -8 -7 -7 --------- Run | Yrd Mat Min Exi Min Mat Fac Low Total 7864 | 80 1748 755 221 602 1548 2758 152 Wait 346 | 13 135 13 2 10 19 133 21 Move 6759 | 47 1436 694 212 571 1394 2288 117 Hop . | . . . . . . . . Pick Up 24 | . 4 . 1 1 8 9 1 Fast Attach 23 | 8 2 . 1 2 4 6 . Attach 2 | . . . . 2 . . . Detach 1 | . . . 1 . . . . Swap 15 | 2 . 3 . . 4 6 . Drop 31 | . 2 1 4 . 9 15 . Fire 397 | 10 113 26 . 9 68 165 6 Melee . | . . . . . . . . Ram 1 | . 1 . . . . . . Kick . | . . . . . . . . Crush . | . . . . . . . . Escape Stasis . | . . . . . . . . Rewire . | . . . . . . . . Trap . | . . . . . . . . Miscellaneous 265 | . 55 18 . 7 42 136 7 Route ------- -11/Scrapyard -10/Materials (discovered 4 exits: [*Mat x3] / [*Min]) -10/Mines (discovered 3 exits: [*Mat x2] / *Exi) -10/Exiles -9/Mines (discovered 2 exits: *Mat x2) -8/Materials (discovered 2 exits: *Fac x2) -7/Factory (discovered 2 exits: [*Fac] / *Low) -7/Lower Caves (discovered 1 exit: Low) History --------- Turn | Location | Event 4 | -11/Scrapyard | Upgraded with Power slot (x1) 4 | -11/Scrapyard | Upgraded with Propulsion slot (x1) 4 | -11/Scrapyard | Upgraded with Utility slot (x1) 4 | -11/Scrapyard | Upgraded with Weapon slot (x1) 19 | -11/Scrapyard | Discovered new exit (range 16) 92 | -11/Scrapyard | Entered Materials 238 | -10/Materials | Discovered new exit (range 6) 300 | -10/Materials | Build established: Mutant 534 | -10/Materials | Reached level 2 539 | -10/Materials | Upgraded with Utility slot (x1) 685 | -10/Materials | Discovered new exit (range 9) 700 | -10/Materials | Discovered new exit (range 11) 1132 | -10/Materials | Discovered new exit (range 7) 1206 | -10/Materials | Reached level 3 1220 | -10/Materials | Upgraded with Utility slot (x1) 1586 | -10/Materials | Reached level 4 1764 | -10/Materials | Entered Mines 1764 | -10/Mines | Accompanied by 1 ally 1802 | -10/Mines | Assembled infested the area 1835 | -10/Mines | Received a Mining Laser from a helpful Derelict 2021 | -10/Mines | Deemed a non-threat by the Exiles lab entrance 2021 | -10/Mines | Discovered new exit (range 5) 2061 | -10/Mines | Received a Rocket Launcher from a helpful Derelict 2092 | -10/Mines | Build established: Scavenger-Mutant 2194 | -10/Mines | Discovered new exit (range 6) 2224 | -10/Mines | Discovered new exit (range 6) 2240 | -10/Mines | Reached level 5 2434 | -10/Mines | Entered Exiles 2434 | -10/Exiles | Accompanied by 1 ally 2454 | -10/Exiles | Met 8R-AWN 2468 | -10/Exiles | Met EX-HEX 2489 | -10/Exiles | Met EX-BIN 2499 | -10/Exiles | Aligned with FarCom system 2500 | -10/Exiles | Given EX-Vault access code 2519 | -10/Exiles | Opened EX-Vault 2522 | -10/Exiles | Found Prototype Energy Cannon 2522 | -10/Exiles | Identified Firepult 2523 | -10/Exiles | Upgraded with Propulsion slot (x1) 2540 | -10/Exiles | Warned to stay clear of 0b10 Research branches 2566 | -10/Exiles | Met EX-DEC 2600 | -10/Exiles | Discovered new exit (range 14) 2611 | -10/Exiles | Left Exiles lab with Firepult 2611 | -10/Exiles | Entered Mines 2611 | -9/Mines | Accompanied by 1 ally 2738 | -9/Mines | Discovered new exit (range 10) 2840 | -9/Mines | Reached level 6 2878 | -9/Mines | Upgraded with Utility slot (x1) 2907 | -9/Mines | Build established: Scavenger-Skirmisher 2917 | -9/Mines | Discovered new exit (range 14) 3045 | -9/Mines | Found a Scrap Suit stashed away for nefarious purposes 3049 | -9/Mines | Found Scrap Suit 3109 | -9/Mines | Entered Materials 3111 | -8/Materials | Reached level 7 3149 | -8/Materials | Upgraded with Utility slot (x1) 3184 | -8/Materials | Reached level 8 3194 | -8/Materials | Discovered new exit (range 15) 3286 | -8/Materials | Reached level 9 3317 | -8/Materials | Destroyed 9 combat bots 3418 | -8/Materials | Reached level 10 3489 | -8/Materials | Upgraded with Propulsion slot (x1) 3497 | -8/Materials | Discovered new exit (range 5) 3509 | -8/Materials | First assault squad dispatched 3522 | -8/Materials | Garrison activated, responded to threat 3524 | -8/Materials | Reached level 11 3551 | -8/Materials | Upgraded with Utility slot (x1) 3563 | -8/Materials | Destroyed 9 combat bots 3801 | -8/Materials | Reached level 12 3953 | -8/Materials | Sterilization system engaged 3953 | -8/Materials | Non-combat units ordered to evacuate 3972 | -8/Materials | Destroyed 13 combat bots 4053 | -8/Materials | Combat units ordered to evacuate 4180 | -8/Materials | Identified exit to Factory 4253 | -8/Materials | Ambient heat levels rising (+10) 4403 | -8/Materials | Ambient heat levels rising (+10) 4443 | -8/Materials | Entered Factory 4445 | -7/Factory | Reached level 13 4457 | -7/Factory | Build established: Scavenger-Mutant 4584 | -7/Factory | Reached level 14 4780 | -7/Factory | Upgraded with Utility slot (x1) 4881 | -7/Factory | Discovered new exit (range 10) 4907 | -7/Factory | Identified exit to Lower Caves 5182 | -7/Factory | Reached level 15 5231 | -7/Factory | Destroyed 7 combat bots 5243 | -7/Factory | First assault squad dispatched 5501 | -7/Factory | Fabricated Cryofiber Web (x2) 5510 | -7/Factory | Reached level 16 5657 | -7/Factory | Garrison activated, responded to threat 5662 | -7/Factory | High security lockdown imminent 5696 | -7/Factory | Destroyed 9 combat bots 5742 | -7/Factory | High security lockdown engaged 5805 | -7/Factory | Reached level 17 5837 | -7/Factory | Destroyed 21 combat bots 5876 | -7/Factory | Upgraded with Propulsion slot (x1) 5913 | -7/Factory | Destroyed 8 combat bots 6157 | -7/Factory | Destroyed 29 combat bots 6280 | -7/Factory | Reached level 18 6351 | -7/Factory | Upgraded with Propulsion slot (x1) 6406 | -7/Factory | Garrison activated, responded to threat 6452 | -7/Factory | Destroyed 9 combat bots 6524 | -7/Factory | Sterilization system engaged 6524 | -7/Factory | Non-combat units ordered to evacuate 6574 | -7/Factory | Destroyed 17 combat bots 6620 | -7/Factory | Destroyed 15 combat bots 6624 | -7/Factory | Combat units ordered to evacuate 6670 | -7/Factory | Destroyed 7 combat bots 6824 | -7/Factory | Ambient heat levels rising (+10) 6865 | -7/Factory | Discovered new exit (range 6) 6974 | -7/Factory | Ambient heat levels rising (+10) 7014 | -7/Factory | Entered Lower Caves 7023 | -7/Lower Caves | Identified exit to Lower Caves 7158 | -7/Lower Caves | Self-destructed Last Messages --------------- 07136_ System Restoration Module purges 1% system corruption (3%). 07136_ Power failure averted by Cryofiber Web. 07136_ Overheating: Signal Interpreter damaged (-10). 07136_ Overheating: Lgt. Nuclear Core damaged (-20). 07136_ Internal heat damage averted by Cryofiber Web. 07139_ Firepult emits a massive uncontrolled burst of heat. 07139_ Carbon-fiber Leg melted. 07139_ Unknown Slashing Weapon melted. 07139_ L-41 Fighter destroyed. 07140_ Power failure averted by Cryofiber Web. 07140_ Internal heat damage averted by Cryofiber Web. 07141_ Power failure averted by Cryofiber Web. 07141_ Firepult broken. 07141_ Overheating: Short circuit. 07142_ Power failure averted by Cryofiber Web. 07142_ G-47 Trooper heat short circuits Aluminum Leg. 07143_ System Restoration Module purges 1% system corruption (2%). 07143_ G-47 Trooper heat spikes uncontrollably. 07143_ G-47 Trooper overheating. 07146_ System Restoration Module purges 1% system corruption (1%). Map ----- +----------------------------------------------------+ | ?????????????????????????????????????????????????? | | ?????????????????????????????????????????????????? | | ?????????????????????????????????????????????????? | | ?????????????????????????????????????????????????? | | ?????????????????????????????????????????????????? | | ?????????????????????????????????############????? | | ?????????????????????????????#####%= #????? | | ????????????????????????????## "" #????? | | ????????????????????????????# """" " #????? | | ????????????????????????????# # "" "" #????? | | ?????????????????????###???## ## """ #????? | | ?????????????????????# ##### ### " " """ #????? | | ?????????????????????# ### " "" #????? | | ???????????########### ## "" ### "" | | ???????????# # ##### " | | ???????????# ### #??## | | ??????????## "" " " #?# #???# ## ## | | ??????????# """ " #?# ##???# #? #?? | | ????##???## "" "" ### #???? #?? ???? | | ????# #### " ##?## ??? #??? ??? | | ?#### """" #???## ?####???? ?? | | ## """"" #????#### #??????? ? | | "" ######????# #???????? | | ## ##????# #????????? | | ####### #### #????? ?????????? | | ??????## ##?# @ #????????????????? | | ???????# #??## ###????????????????? | | ??????## ####### ######??????????????????? | | ?????## % #### ##???????????????????????? | | #### %%% ## ##???????????????????????? | | % #???????????????????????? | | ##???????????????????????? | | # ## ##????????????????????????? | | ?# ### ## ##?????????????????????????? | | ?# #??# ### ##????????????????####??????? | | ?# ##???# #?# ##????????????? ???????? | | ?# ?????# #?# ##?????##### ##???????????? | | ?# ??????# ### ###??????# #???????????? | | ? ???????# # g#?####???# ## #???????????? | | ????????#### # ### ##### #??? #??????? | | ????????????# # %* % #????? #??????? | | ??????????### #??????? # "#??????? | | ??????????# ###########???????????""???????? | | ??????????## ####??????????????????????????????? | | ???????????#####?????????????????????????????????? | | ?????????????????????????????????????????????????? | | ?????????????????????????????????????????????????? | | ?????????????????????????????????????????????????? | | ?????????????????????????????????????????????????? | | ?????????????????????????????????????????????????? | +----------------------------------------------------+ Best States ------------- Heat Dissipation 225 Coolant Potential 50 Energy Generation 34 Energy Capacity 400 Matter Stores 300 Matter Capacity 300 Sight Range 17 Terrain Scan Range 16 Terrain Scan Density 10 Base Temperature (-) 100 Armor Coverage 450 Resistance: KI 30 Resistance: TH 10 Resistance: EM 15 Evasion (%) 44 Offensive Hacking 5 Defensive Hacking 5 Item Schematics ----------------- Cryofiber Web | -7/Factory | Hacked Robot Schematics ------------------ None Fabricated ------------ Cryofiber Web | x2 | -7/Factory Repaired ---------- Nothing Studied --------- None Alien Tech Used ----------------- None Achievements -------------- None Challenges ------------ None RPGLIKE | -11 -10 -10 -10 -9 -8 -7 -7 --------- Run | Yrd Mat Min Exi Min Mat Fac Low Levels Raised 17 | . 3 1 . 1 6 6 . XP Earned 29976 | 3000 5028 1000 243 2100 9611 8809 185 XP Spent 28420 | 2970 4450 . 1400 1400 9200 9000 . Upgrades 51 | 9 12 . 2 1 15 12 . Power Slot 1 | 1 . . . . . . . Propulsion Slot 5 | 1 . . 1 . 1 2 . Utility Slot 7 | 1 2 . . 1 2 1 . Weapon Slot 1 | 1 . . . . . . . Heat Dissipation 24 | 2 7 . . . 10 5 . Energy Generation 2 | . . . . . . 2 . Mass Support 3 | 1 . . 1 . 1 . . Inventory Capacity 2 | 2 . . . . . . . Sight Range 1 | . . . . . 1 . . Ranged Accuracy 3 | . 3 . . . . . . Hack Attack % 1 | . . . . . . 1 . Hack Defense % 1 | . . . . . . 1 . Protomatter Created 4965 | . 561 80 . 69 1361 2740 154 Integrity Restored 5115 | . 1028 352 . 107 810 2685 133 Core 3148 | . 783 169 . 82 453 1616 45 Parts 1967 | . 245 183 . 25 357 1069 88 Protomatter Decayed 1060 | . 132 10 . . 562 356 . Game ------ Seed PoweredSignalStick Manual? 1 Play Time 00:59:30 Cumulative 557.6 hours Start 2026.01.19 @ 20:31:27 End 2026.01.19 @ 21:35:53 Sessions 3 Manual Loads 0 Difficulty Rogue Special Mode Winter2019/RPGLIKE Game No. 213 Rogue 59 Adventurer 154 Explorer 0 Win Type - Total 20 Types 4/4/3/3/2/1/0/1/1/1 Lore% 95 Gallery% 88 Achievement% 61 Wizard Run 0 Options --------- Layout 0 ASCII 0 Keyboard 0 Movement Numpad Keybinds 0 Fullscreen 2 Font 18/SmallcapsGlow Map View 76x50 Zoom Use 0% Tactical HUD 1 Map Filters NONE Filters NONE Steam 1 RUN: d97a9875-e3b1-4988-8df2-d82964c60731